Cogmind - Beta 10.2 @@@ ROGUE MODE // 2021.03.07 @ 22:47:21 Player: Primesplitter Result: Destroyed self with Grenade Launcher Performance ------------- Evolutions (0) 0 Regions Visited (2) 400 Robots Destroyed (14) 70 Value Destroyed (296) 296 Prototype IDs (0) 0 Alien Tech Used (0) 0 Bonus (25) 25 TOTAL SCORE: 791 Bonus ------- Follower Combat Kills 25 Cogmind --------- Core Integrity 0/250 Matter 245/300 Energy 250/250 System Corruption 0% Temperature Cool (0) Movement Walking (120) Location -10/Mines Parts ------- > --- POWER (1) -------- Ion Engine > --- PROPULSION (2) --- Aluminum Leg Aluminum Leg > --- UTILITY (2) ------ Improved Heat Sink Small Storage Unit > --- WEAPON (2) ------- Grenade Launcher > --- INVENTORY (6) ---- Light Angular Momentum Engine Aluminum Leg Improved Heat Sink Medium Storage Unit Experimental Sensor Array Light Armor Plating Peak State ------------ > --- POWER ------------ Light Angular Momentum Engine > --- PROPULSION ------- Aluminum Leg Aluminum Leg > --- UTILITY ---------- Improved Heat Sink Small Storage Unit > --- WEAPON ----------- Beamcaster Heavy Assault Rifle > --- INVENTORY -------- Aluminum Leg Medium Storage Unit Experimental Sensor Array Targeting Computer Light Armor Plating Grenade Launcher [Rating: 19] Favorites ----------- Power Ion Engine Engine Ion Engine Propulsion Aluminum Leg Leg Aluminum Leg Utility Small Storage Unit Device Improved Heat Sink Storage Small Storage Unit Weapon Heavy Assault Rifle Energy Gun Beamcaster Energy Cannon Beam Cannon Ballistic Gun Heavy Assault Rifle Launcher Grenade Launcher Build | -11 -10 -10 ------- Run | Scr Mat Min Slots Evolved . | . . . Power . | . . . Propulsion . | . . . Utility . | . . . Weapon . | . . . Parts Attached 24 | 9 1 14 Power 5 | 1 . 4 Engine 5 | 1 . 4 Core . | . . . Reactor . | . . . Propulsion 5 | 2 . 3 Treads . | . . . Leg 5 | 2 . 3 Wheel . | . . . Hover . | . . . Flight . | . . . Utility 5 | 1 1 3 Device 3 | . . 3 Storage 2 | 1 1 . Processor . | . . . Hackware . | . . . Protection . | . . . Artifact . | . . . Weapon 9 | 5 . 4 Energy Gun 5 | 4 . 1 Energy Cannon 1 | . . 1 Ballistic Gun 2 | 1 . 1 Ballistic Cannon . | . . . Launcher 1 | . . 1 Special Weapon . | . . . Impact Weapon . | . . . Slashing Weapon . | . . . Piercing Weapon . | . . . Special Melee Weapon . | . . . Unidentified Prototypes . | . . . Parts Lost 1 | . . 1 Power . | . . . Propulsion . | . . . Utility . | . . . Weapon 1 | . . 1 Highest Loss Streak 1 | . . 1 Average Slot Usage (%) 95 | . 86 96 Engine 13 | . 14 13 Leg 28 | . 28 28 Device 10 | . . 12 Storage 14 | . 15 14 Energy Gun 11 | . 28 9 Energy Cannon 2 | . . 2 Ballistic Gun 10 | . . 11 Launcher 3 | . . 3 Naked Turns . | . . . Heaviest Build 22 | 13 13 22 Greatest Support 20 | 20 20 20 Greatest Overweight (x) 2 | 2 . 1 Average Overweight (x) . | . . . Largest Inventory Capacity 10 | 6 10 6 Average Capacity 5 | 5 6 6 Most Carried 6 | 3 6 6 Average Carried 5 | 1 4 5 Final Capacity 6 | 6 6 6 Final Carried 6 | 2 6 6 Class Distribution -------------------- 66% | Mutant 33% | Scavenger-Mutant Dominant Class ---------------- Mutant | -10/Materials Mutant | -10/Mines Resources | -11 -10 -10 ----------- Run | Scr Mat Min Matter Collected 562 | 258 42 262 Remotely . | . . . Salvage Created 357 | . 51 306 Parts 24 | . 7 17 Haulers Intercepted . | . . . Recyclers Shooed . | . . . Parts Field Recycled . | . . . Retrieved Matter . | . . . Parts Self-Destructed . | . . . Prevented . | . . . Kills | -11 -10 -10 ------- Run | Scr Mat Min Combat Hostiles Destroyed 16 | . 3 13 Guns 9 | . 3 6 Cannons 4 | . . 4 AOE 3 | . . 3 Classes Destroyed 3 | . 1 2 Swarmer 9 | . 3 6 Grunt 5 | . . 5 Assembled 2 | . . 2 Best Kill Streak 5 | . 3 5 Combat Bots Only 5 | . 3 5 Max Kills in Single Turn 2 | . 1 2 Gunslinging . | . . . Exploded 2 | . . 2 Melee . | . . . Uniques/NPCs Destroyed . | . . . Combat | -11 -10 -10 -------- Run | Scr Mat Min Damage Taken 836 | . 122 714 Core 266 | . 17 249 Absorbed by Shields . | . . . Core Remaining (%) 100 | 100 . . Volleys Fired 46 | . 4 42 Largest 2 | . 2 2 Hottest 98 | . 90 98 Shots Fired 69 | . 8 61 Gun 53 | . 8 45 Cannon 8 | . . 8 Launcher 8 | . . 8 Special . | . . . Kinetic 34 | . . 34 Thermal 23 | . 4 19 Explosive 8 | . . 8 Electromagnetic 4 | . 4 . Robot Hit Streak 11 | . 4 11 Robot Miss Streak 4 | . 1 4 Penetration Max . | . . . Secondary Targets 2 | . 2 . Max Gunslinging Chain 1 | . 1 . Shots Hit Robots 38 | . 5 33 Core Hits 23 | . 3 20 Critical Hits . | . . . Critical Kills . | . . . Critical Parts Destroyed . | . . . Melee Attacks . | . . . Impact . | . . . Slashing . | . . . Piercing . | . . . Sneak Attacks . | . . . Combat Hostiles . | . . . Follow-up Attacks . | . . . Damage Inflicted 770 | . 69 701 Guns 524 | . 69 455 Cannons 106 | . . 106 Explosions 140 | . . 140 Melee . | . . . Ramming . | . . . Kinetic 352 | . . 352 Thermal 247 | . 38 209 Explosive 140 | . . 140 Electromagnetic 31 | . 31 . Impact . | . . . Slashing . | . . . Piercing . | . . . Highest Corruption . | . . . Average Corruption . | . . . Corruption Purged . | . . . Overload Shots . | . . . Overflow Damage 3 | . . 3 Projectiles . | . . . Explosions 3 | . . 3 Melee . | . . . Knockbacks . | . . . Impact . | . . . Kinetic . | . . . Secondary . | . . . Self-Inflicted Damage 158 | . . 158 Shots 5 | . . 5 Rammed 1 | . . 1 Targets Rammed 1 | . . 1 Kicked . | . . . Crushed . | . . . Highest Temperature 120 | . 120 6 Average Temperature 45 | . 61 4 Received Heat Transfer 162 | . 36 126 Siege Activations . | . . . Robots Corrupted . | . . . Combat Hostiles . | . . . Parts Fried . | . . . Impact Corruptions . | . . . Robots Melted . | . . . Combat Hostiles . | . . . Parts Melted 1 | . 1 . Heat Transferred 518 | . 111 407 Parts Sabotaged . | . . . Parts Stolen . | . . . Parts Stripped . | . . . Power Chain Reactions . | . . . Missiles Intercepted . | . . . Alert | -11 -10 -10 ------- Run | Scr Mat Min Peak Influence 198 | . 70 198 Initial 27 | . . 27 Average 73 | . 33 85 Maximum Alert Level . | . . . Low Security (%) 100 | 100 100 100 Level 1 . | . . . Level 2 . | . . . Level 3 . | . . . Level 4 . | . . . Level 5 . | . . . High Security . | . . . Max Security . | . . . Squads Dispatched 1 | . . 1 Investigation . | . . . Extermination . | . . . Reinforcement . | . . . Assault 1 | . . 1 Garrison . | . . . Intercept . | . . . Construction Impeded . | . . . Haulers Reinforced . | . . . Stealth | -11 -10 -10 --------- Run | Scr Mat Min Distress Signals . | . . . Communications Jammed . | . . . Distress Signals . | . . . Times Spotted 24 | . 7 17 Peak Tracking Total 16 | . 5 16 Tactical Retreats 1 | . . 1 Traps | -11 -10 -10 ------- Run | Scr Mat Min Traps Triggered . | . . . Indirectly . | . . . Trap Hack Attempts . | . . . Triggered . | . . . Disarmed . | . . . Reprogrammed . | . . . Reused . | . . . Traps Extracted . | . . . Installed . | . . . Triggered . | . . . Machines | -11 -10 -10 ---------- Run | Scr Mat Min Machines Disabled 1 | . . 1 Max in Single Turn 1 | . . 1 Machines Sabotaged . | . . . Garrisons Compromised . | . . . Overloaded Fab Kills . | . . . Fab Network Shutdowns . | . . . Hacking | -11 -10 -10 --------- Run | Scr Mat Min Machines Accessed . | . . . Terminals . | . . . Fabricators . | . . . Repair Stations . | . . . Recycling Units . | . . . Scanalyzers . | . . . Garrison Access . | . . . Total Hacks . | . . . Successful . | . . . Failed . | . . . Catastrophic . | . . . Database Lockouts . | . . . Manual . | . . . Terminals . | . . . Fabricators . | . . . Repair Stations . | . . . Recycling Units . | . . . Scanalyzers . | . . . Garrison Access . | . . . Terminal Hacks . | . . . Fabricator Hacks . | . . . Repair Station Hacks . | . . . Recycling Unit Hacks . | . . . Scanalyzer . | . . . Garrison Access Hacks . | . . . Unauthorized Hacks . | . . . Terminals . | . . . Fabricators . | . . . Repair Stations . | . . . Recycling Units . | . . . Scanalyzers . | . . . Garrison Access . | . . . Data Cores Recovered . | . . . Used . | . . . Hacking Detections . | . . . Full Trace Events . | . . . Feedback Events . | . . . Feedback Blocked . | . . . Robot Schematics Acquired . | . . . Robots Built . | . . . Matter . | . . . Time . | . . . Total Robot Build Rating . | . . . Part Schematics Acquired . | . . . Parts Built . | . . . Matter . | . . . Time . | . . . Total Part Build Rating . | . . . Parts Repaired . | . . . Time . | . . . Parts Recycled . | . . . Recycled Matter . | . . . Retrieved Matter . | . . . Retrieved Components . | . . . Parts Scanalyzed . | . . . Part Schematics Acquired . | . . . Parts Damaged . | . . . Bothacking | -11 -10 -10 ------------ Run | Scr Mat Min Used RIF Installer . | . . . Robots Hacked . | . . . Non-combat . | . . . Combat . | . . . Robot Hacks Applied . | . . . Relay Couplers Released . | . . . Robots Rewired . | . . . Allies Hacked . | . . . Hacks Repelled . | . . . Allies | -11 -10 -10 -------- Run | Scr Mat Min Total Allies 1 | . . 1 Largest Group 1 | . . 1 Highest-Rated Group 31 | . . 31 Highest-Rated Ally 31 | . . 31 Total Orders . | . . . Ally Attacks 10 | . . 10 Total Damage 166 | . . 166 Kills 1 | . . 1 Allies Corrupted . | . . . Allies Melted . | . . . Intel | -11 -10 -10 ------- Run | Scr Mat Min Robot Analysis Total . | . . . Derelict Logs Recovered 1 | . . 1 Drone Launches . | . . . Drone Recoveries . | . . . Exploration | -11 -10 -10 ------------- Run | Scr Mat Min Turns Passed 875 | 62 107 706 Spaces Moved 547 | 44 74 429 Core 13 | 13 . . Treads . | . . . Legs 534 | 31 74 429 Wheels . | . . . Hover . | . . . Flight . | . . . Fastest Speed 50 | 50 120 120 Average Speed 122 | 108 120 123 Slowest Speed 150 | 150 120 150 Overloaded Moves . | . . . Propulsion Burnouts . | . . . Robots Hopped . | . . . Cave-ins Triggered . | . . . Exploration Rate (%) 34 | 4 22 76 Regions Visited 2 Branch Regions 1 Pre-discovered Areas . | . . . Known Exits Taken . | . . . Unknown Exits Taken 2 | 1 1 . Scrap Searched 3 | . . 3 Spaces Dug 21 | . . 21 Terrain Destroyed 57 | . . 57 Melee . | . . . Projectile . | . . . AOE 57 | . . 57 Terrain Rammed . | . . . Walls Destroyed . | . . . Machines Disabled . | . . . Actions | -11 -10 -10 --------- Run | Scr Mat Min Total 687 | 57 84 546 Wait 38 | . . 38 Move 545 | 43 73 429 Hop . | . . . Pick Up 11 | 2 4 5 Fast Attach 19 | 6 1 12 Attach 5 | 3 . 2 Detach 5 | 3 1 1 Swap . | . . . Drop 17 | . 1 16 Fire 46 | . 4 42 Melee . | . . . Ram . | . . . Kick 1 | . . 1 Crush . | . . . Escape Stasis . | . . . Rewire . | . . . Trap . | . . . Miscellaneous . | . . . Route ------- -11/Scrapyard -10/Materials -10/Mines (discovered 1 exit: *Mat) History --------- Turn | Location | Event 31 | -11/Scrapyard | Discovered new exit (range 16) 63 | -11/Scrapyard | Entered Materials 136 | -10/Materials | Discovered new exit (range 16) 170 | -10/Materials | Entered Mines 248 | -10/Mines | Joined a pair of Derelicts in attacking an 0b10 outpost 306 | -10/Mines | Build established: Mutant 307 | -10/Mines | Met a Derelict testing a Signal Generator 473 | -10/Mines | Identified exit to Materials 498 | -10/Mines | Found a damaged Exp. Sensor Array with a note attached 502 | -10/Mines | Found Prototype Device 653 | -10/Mines | Assembled infested the area 678 | -10/Mines | Core integrity fell below 50% 779 | -10/Mines | Core integrity fell below 20% 876 | -10/Mines | Destroyed self with Grenade Launcher Last Messages --------------- 00698_ Dropped Beamcaster. 00699_ S-10 Pest destroyed. 00703_ Acquired 18 matter. 00709_ The unstable cave ceiling collapses. 00709_ Acquired 12 matter. 00716_ Searching scrap... 00716_ Found Seismic Analyzer. 00716_ Found 19 Matter. 00717_ Acquired 19 matter. 00721_ The unstable cave ceiling collapses. 00749_ Core Extractor disabled. 00766_ G-34 Mercenary destroyed. 00778_ G-47 Trooper destroyed. 00782_ Acquired 56 matter. 00791_ Acquired Imp. Heat Sink. 00794_ Dropped Aluminum Leg. 00794_ Acquired Aluminum Leg. 00797_ Acquired 20 matter. 00858_ Hvy. Assault Rifle destroyed. 00858_ Destroyed Hvy. Assault Rifle. Map ----- +----------------------------------------------------+ | ????????????# #??????????? | | ????????????# """ """ """ #??????????? | | ????????????# """ """ """ #??????????? | | ????????????# """ """ """ #??????????? | | ????????????# #??????????? | | ????????????# """ """ """ #??????????? | | ????????????# """ """ """ #??????????? | | ????????????# """ """ """ #??????????? | | ????????????# #??????????? | | ????????????# """ """ #??????????? | | ????????????# """ """ #??????????? | | ????????????# " """ """ #??????????? | | ????????????# #??????????? | | ????????????# #??????????? | | ????????????# = #??????????? | | ????????????# % #??????????? | | ????????????#### # #########??????????? | | ??###########??# #[#??????????????????? | | ??# #??# # #??????????????????? | | ??# #??# # #??????????????????? | | ??# """ """ #?### # #??????????????????? | | ??# """ """ ### # #??????????????????? | | ??# """ """ ## #??????????????????? | | ??# ## ##??????????????????? | | ??# ! # #????????????????????? | | ??###### ## @ #????#####?????#####?? | | ???????# ### #???## ##???## ##? | | ???????# * #?### ##??# #? | | ??????### ## #### #?## ## | | ??????# # * ## # ##?# #?# # | | ??????## % #######?## ### | | ???????# #?????## ## ## | | ???????# #????## #### | | ???????## ##????# #??# | | ????????# ###??## #??# #### | | ???###### #### #??# ###??# | | ???# %[ ##??# ##????## | | ???# ##### """" ##???####??????#### | | ???# #???# """" ##?????????????????### | | ???# #???# """" ##????????????????????? | | ???# #??# ##?????????????????????? | | ???# #??# ##??????????????????????? | | ???# #??## ##???????????????????????? | | ???# #???#######????????????????????????? | | ???# #??????????????????????????????????? | | ???# #??????????????????????????????????? | | ???# #??????????????????????????????????? | | ???# #??????????????????????????????????? | | ???# #??????????????????????????????????? | | ???# #??????????????????????????????????? | +----------------------------------------------------+ Best States ------------- Heat Dissipation 39 Energy Generation 18 Energy Capacity 250 Matter Stores 300 Matter Capacity 300 Sight Range 16 Terrain Scan Density 10 Evasion (%) 50 Item Schematics ----------------- None Robot Schematics ------------------ None Fabricated ------------ Nothing Alien Tech Used ----------------- None Achievements -------------- None Challenges ------------ None Game ------ Seed ThrusterIntegratedJammer Manual? 0 Play Time 00:17:17 Cumulative 0.7 hours Start 2021.03.07 @ 22:33:45 End 2021.03.07 @ 22:47:21 Sessions 1 Manual Loads 0 Difficulty Rogue Special Mode None Game No. 8 Rogue 8 Adventurer 0 Explorer 0 Win Type - Total 0 Types 0/0/0/0/0/0/0/0/0 Lore% 2 Gallery% 10 Achievement% 7 Wizard Run 0 Options --------- ASCII 0 Keyboard 1 Movement Numpad Keybinds 0 Fullscreen 1 Font 18/SmallcapsGlow Map View 76x50 Tactical HUD 1 Map Filters NONE Filters NONE Steam 1 RUN: 28613a30-d28b-4d88-bcc3-577bcef55ad2